Workbook

Sheet 説明
A1: バイリニア型１自由度系システムの地震応答計算（グラフ付き） | F1: 作成者 | G1: 伊津野 和行
A2: Version | B2: 3.1 | F2: 連絡先 | G2: izuno@se.ritsumei.ac.jp
A3: 最終更新日 | B3: 2018-09-19 | G3: 〒525-8577 草津市野路東1-1-1
G4: 立命館大学理工学部環境都市工学科教授
A5: 使用方法
A6: 1 | B6: 下のタグから計算シートを選び、B2～B9まで必要なデータを入力する。
A7: 2 | B7: 初期状態では、50個の入力加速度に対して計算するようになっているので、
B8: 必要なだけ、51行目の数式を、下方向へコピー＆ペーストする。
A9: 3 | B9: セルＤ２に１列になった地震加速度を貼り付ける。単位はgal(=cm/s2)。
B10: 複数の列になったデータの場合、整形して縦１列にしておくことが必要。
A11: 4 | B11: 「グラフ」シートで「表示」→「マクロ」、Responseというマクロを実行すれば、揺れている様子をグラフでアニメーション表示する。
B12: 再度グラフを描く時は「表示」→「マクロ」でInitializeというマクロを実行。
A14: 結果 | B14: 最大値等 | C14: Ｂ列の１２行目から２２行目まで
B15: 時刻歴応答 | C15: Ｃ列 | D15: 時間軸 | E15: s | F15: Ｌ列 | G15: 相対速度 | H15: m/s
C16: Ｄ列 | D16: 地震加速度 | E16: gal=cm/s2 | F16: Ｎ列 | G16: 絶対応答加速度 | H16: m/s2
C17: Ｅ列 | D17: 相対変位 | E17: m | F17: Ｉ列 | G17: 復元力 | H17: kN
C18: Ｑ列 | D18: 累積履歴エネルギー吸収量 | E18: kN.m | F18: Ｒ列 | G18: 累積入力エネルギー量 | H18: kN.m
C19: 他の列 | D19: 計算途中に必要なだけの列なので無視してよい。
A21: 解法 | B21: 数値積分は酒井らの非反復時間積分法による。
B22: 酒井久和，澤田純男，土岐憲三：収束計算を行わない動的非線形FEMのための時間積分法，
B23: 土木学会論文集，No.507, pp.137-147, 1995.1.
B25: バイリニアの計算には、前ステップからの初期剛性によって決まる点と、
B26: 正の降伏域にある点、および負の降伏域にある点の３点の復元力を比較し、
B27: 大きくも小さくもない点を採用するという単純な方法をとっている。
A29: Thanks to: | B29: 酒井久和氏 | C29: 川村弘昌氏
A31: 改訂履歴 | B31: ver.1.0 | C31: 1997.3.3 | D31: 最初のバージョン完成
B32: ver.1.1 | C32: 1997.3.12 | D32: 応答解析メニューを追加
B33: ver.1.2 | C33: 2001.5.30 | D33: SI単位への移行
B34: ver.2.0 | C34: 2013.2.22 | D34: 積分法をオペレータ・スプリッティング法から非反復時間積分法へ変更
B35: ver.3.0 | C35: 2015.11.6 | D35: グラフの追加
B36: ver.3.1 | C36: 2018.9.19 | D36: グラフが動かなくなっていたのを修正

Sheet 計算
A1: 入力情報 | C1: 時間軸(s) | D1: 地震波(gal) | E1: 相対変位(m) | F1: 線形域 | G1: 正降伏域 | H1: 負降伏域 | I1: 復元力(kN) | J1: 調整外力 | K1: 調整外力の増分 | L1: 相対速度(m/s) | M1: 相対加速度 | N1: 絶対加速度(m/s2) | O1: 履歴エネルギー | P1: 入力エネルギー | Q1: 累積履歴エネルギー吸収量 (kN.m) | R1: 累積入力エネルギー量 (kN.m)
A2: 時間刻み Δt (s) | B2: 0.01 | C2: =IF(ROW(C1)<=$B$3,ROW(C1)*$B$2," ") -> 0.01 | D2: 16.17 | E2: 0 | I2: 0 | J2: 0 | L2: 0 | M2: 0 | N2: =D2/100+M2 -> 0.1617 | O2: 0 | P2: 0 | Q2: 0 | R2: 0
A3: データ数 N | B3: 3000 | C3: =IF(ROW(C2)<=$B$3,ROW(C2)*$B$2," ") -> 0.02 | D3: 17.104 | E3: =(-$B$4*D3/100+J2+$B$4*(4*E2/$B$2/$B$2+4*L2/$B$2+M2)+$B$25*(2*E2/$B$2+L2))/$B$26 -> -4.250704289e-06 | F3: =$B$12*(E3-E2)+I2 -> -0.4483289995 | G3: =$B$13*(E3-$B$7)+$B$6 -> 2060.67076 | H3: =$B$13*(E3+$B$7)-$B$6 -> -2060.906301 | I3: =IF(F3>G3,G3,IF(F3<H3,H3,F3)) -> -0.4483289995 | J3: =$B$12*E3-I3 -> 0 | K3: =J3-J2 -> 0 | L3: =-L2+2/$B$2*(E3-E2)+K3*$B$2/2/$B$27 -> -0.0008501408577 | M3: =-M2-4*L2/$B$2+4/$B$2/$B$2*(E3-E2)+K3/$B$27 -> -0.1700281715 | N3: =D3/100+M3 -> 0.001011828457 | O3: =(I2+I3)*(E3-E2)/2 -> 9.528570004e-07 | P3: =-(D2/100*L2+D3/100*L3)*$B$2/2*$B$4 -> 0.0005380099415 | Q3: =Q2+O3 -> 9.528570004e-07 | R3: =R2+P3 -> 0.0005380099415
A4: 質量 m (ton) | B4: 740 | C4: 0.03 | D4: 17.838 | E4: -2.135553047e-05 | F4: =$B$12*(E4-E3)+I3 -> -2.252404063 | G4: =$B$13*(E4-$B$7)+$B$6 -> 2060.196852 | H4: =$B$13*(E4+$B$7)-$B$6 -> -2061.380209 | I4: =IF(F4>G4,G4,IF(F4<H4,H4,F4)) -> -2.252404063 | J4: =$B$12*E4-I4 -> 0 | K4: =J4-J3 -> 0 | L4: -0.002570824379 | M4: -0.1741085326 | N4: 0.004271467378 | O4: =(I3+I4)*(E4-E3)/2 -> 2.30977848e-05 | P4: =-(D3/100*L3+D4/100*L4)*$B$2/2*$B$4 -> 0.002234769456 | Q4: =Q3+O4 -> 2.40506418e-05 | R4: 0.002772779398
A5: 減衰定数 h | B5: 0.02 | C5: 0.04 | D5: 18.118 | E5: -5.569622517e-05 | F5: -5.874375448 | G5: 2059.245406 | H5: -2062.331655 | I5: =IF(F5>G5,G5,IF(F5<H5,H5,F5)) -> -5.874375448 | J5: 0 | K5: 0 | L5: -0.004297314562 | M5: -0.1711895041 | N5: 0.009990495879 | O5: 0.000139539627 | P5: 0.004577533089 | Q5: 0.0001635902688 | R5: 0.007350312486
A6: 降伏耐力 Py (kN) | B6: 2795 | C6: 0.05 | D6: 17.889 | E6: -0.0001069690815 | F6: -11.28221068 | G6: 2057.824835 | H6: -2063.752226 | I6: -11.28221068 | J6: 0 | K6: 0 | L6: -0.005957256711 | M6: -0.1607989256 | N6: 0.01809107438 | O6: 0.000439833588 | P6: 0.00682384009 | Q6: 0.0006034238569 | R6: 0.01417415258
A7: 降伏変位 δy (m) | B7: 0.0265 | C7: 0.06 | D7: 17.183 | E7: -0.0001741475616 | F7: -18.36763905 | G7: 2055.963582 | H7: -2065.613479 | I7: -18.36763905 | J7: 0 | K7: 0 | L7: -0.007478439304 | M7: -0.143437593 | N7: 0.02839240704 | O7: 0.0009959159194 | P7: 0.008697641351 | Q7: 0.001599339776 | R7: 0.02287179393
A8: 終局耐力 Pu (kN) | B8: 4341 | C8: 0.07 | D8: 15.983 | E8: -0.0002554982842 | F8: -26.9478379 | G8: 2053.709671 | H8: -2067.86739 | I8: -26.9478379 | J8: 0 | K8: 0 | L8: -0.008791705215 | M8: -0.1192155893 | N8: 0.04061441075 | O8: 0.001843223397 | P8: 0.009953734339 | Q8: 0.003442563173 | R8: 0.03282552827
A9: 終局変位 δu (m) | B9: 0.0823 | C9: 0.08 | D9: 14.183 | E9: -0.0003485820997 | F9: -36.76554599 | G9: 2051.130682 | H9: -2070.446379 | I9: -36.76554599 | J9: 0 | K9: 0 | L9: -0.009825057893 | M9: -0.08745494625 | N9: 0.05437505375 | O9: 0.002965342437 | P9: 0.01035506496 | Q9: 0.00640790561 | R9: 0.04318059323
C10: 0.09 | D10: 11.743 | E10: -0.0004502251479 | F10: -47.48601088 | G10: 2048.314551 | H10: -2073.26251 | I10: -47.48601088 | J10: 0 | K10: 0 | L10: -0.01050355173 | M10: -0.04824382184 | N10: 0.06918617816 | O10: 0.004281792525 | P10: 0.009719604151 | Q10: 0.01068969814 | R10: 0.05290019738
A11: 計算結果等 | C11: 0.1 | D11: 8.865 | E11: -0.0005565712908 | F11: -58.70251916 | G11: 2045.368114 | H11: -2076.208947 | I11: -58.70251916 | J11: 0 | K11: 0 | L11: -0.01076567685 | M11: -0.004181202312 | N11: 0.08446879769 | O11: 0.005646370297 | P11: 0.008094894532 | Q11: 0.01633606843 | R11: 0.06099509191
A12: 初期剛性 k1 (kN/m) | B12: =B6/B7 -> 105471.6981 | C12: 0.11 | D12: 5.834 | E12: -0.0006633012785 | F12: -69.95951221 | G12: 2042.411043 | H12: -2079.166018 | I12: -69.95951221 | J12: 0 | K12: 0 | L12: -0.01058032069 | M12: 0.04125243499 | N12: 0.09959243499 | O12: 0.006866048514 | P12: 0.0058150427 | Q12: 0.02320211695 | R12: 0.06681013461
A13: 第２剛性 k2 (kN/m) | B13: =(B8-B6)/(B9-B7) -> 27706.09319 | C13: 0.12 | D13: 2.806 | E13: -0.0007659267726 | F13: -80.78359734 | G13: 2039.567692 | H13: -2082.009369 | I13: -80.78359734 | J13: 0 | K13: 0 | L13: -0.009944778123 | M13: 0.08585607842 | N13: 0.1139160784 | O13: 0.007735043047 | P13: 0.003316333618 | Q13: 0.03093715999 | R13: 0.07012646823
A14: 固有円振動数ω (rad/s) | B14: =SQRT(B12/B4) -> 11.93856448 | C14: 0.13 | D14: -0.241 | E14: -0.000859997642 | F14: -90.70541168 | G14: 2036.961356 | H14: -2084.615705 | I14: -90.70541168 | J14: 0 | K14: 0 | L14: -0.008869395757 | M14: 0.1292203948 | N14: 0.1268103948 | O14: 0.008066060085 | P14: 0.0009533983524 | Q14: 0.03900322008 | R14: 0.07107986658
A15: 固有振動数 f (Hz) | B15: =B14/2/PI() -> 1.90008155 | C15: 0.14 | D15: -3.326 | E15: -0.0009411879464 | F15: -99.26869095 | G15: 2034.71189 | H15: -2086.865171 | I15: -99.26869095 | J15: 0 | K15: 0 | L15: -0.007368665128 | M15: 0.170925731 | N15: 0.137665731 | O15: 0.007712027613 | P15: -0.00098589107 | Q15: 0.04671524769 | R15: 0.07009397551
A16: 固有周期 T (s) | B16: =2*PI()/B14 -> 0.5262932004 | C16: 0.15 | D16: -6.308 | E16: -0.00100537677 | F16: -106.0387951 | G16: 2032.933468 | H16: -2088.643593 | I16: -106.0387951 | J16: 0 | K16: 0 | L16: -0.005469099489 | M16: 0.208987397 | N16: 0.145907397 | O16: 0.006589222951 | P16: -0.002183268612 | Q16: 0.05330447064 | R16: 0.0679107069
A17: 最大地震加速度 (m/s2) | B17: =MAX(MAX($D$2:INDIRECT(ADDRESS(B3+1,4))),-MIN($D$2:INDIRECT(ADDRESS(B3+1,4))))/100 -> 8.1202 | C17: 0.16 | D17: -8.958 | E17: -0.001048827906 | F17: -110.6216602 | G17: 2031.729607 | H17: -2089.847454 | I17: -110.6216602 | J17: 0 | K17: 0 | L17: -0.003221127725 | M17: 0.2406069557 | N17: 0.1510269557 | O17: 0.004707071463 | P17: -0.002344095844 | Q17: 0.05801154211 | R17: 0.06556661105
A18: 最大応答加速度 (m/s2) | B18: =MAX(MAX($N$2:INDIRECT(ADDRESS($B$3+1,14))),-MIN($N$2:INDIRECT(ADDRESS($B$3+1,14)))) -> 8.192680505 | C18: 0.17 | D18: -11.179 | E18: -0.001068413941 | F18: -112.6874326 | G18: 2031.186954 | H18: -2090.390107 | I18: -112.6874326 | J18: 0 | K18: 0 | L18: -0.0006960793375 | M18: 0.2644027219 | N18: 0.1526127219 | O18: 0.002186869889 | P18: -0.001355544324 | Q18: 0.060198412 | R18: 0.06421106673
A19: 最大応答変位 (m) | B19: =MAX(MAX($E$2:INDIRECT(ADDRESS($B$3+1,5))),-MIN($E$2:INDIRECT(ADDRESS($B$3+1,5)))) -> 0.1435694598 | C19: 0.18 | D19: -13.049 | E19: -0.001061743414 | F19: -111.9838809 | G19: 2031.371768 | H19: -2090.205292 | I19: -111.9838809 | J19: 0 | K19: 0 | L19: 0.002030184618 | M19: 0.2808500692 | N19: 0.1503600692 | O19: -0.0007493379643 | P19: 0.0006922851021 | Q19: 0.05944907403 | R19: 0.06490335183
A20: 最大応答速度 (m/s) | B20: =MAX(MAX($L$2:INDIRECT(ADDRESS($B$3+1,12))),-MIN($L$2:INDIRECT(ADDRESS($B$3+1,12)))) -> 0.9762597149 | C20: 0.19 | D20: -14.655 | E20: -0.001027154924 | F20: -108.3357741 | G20: 2032.33008 | H20: -2089.246981 | I20: -108.3357741 | J20: 0 | K20: 0 | L20: 0.004887513458 | M20: 0.2906156989 | N20: 0.1440656989 | O20: -0.003810262133 | P20: 0.003630380386 | Q20: =Q19+O20 -> 0.0556388119 | R20: 0.06853373222
A21: 最大復元力 (kN) | B21: =MAX(MAX($I$2:INDIRECT(ADDRESS($B$3+1,9))),-MIN($I$2:INDIRECT(ADDRESS($B$3+1,9)))) -> 6038.537363 | C21: 0.2 | D21: -15.932 | E21: -0.0009636907268 | F21: -101.6420974 | G21: 2034.088425 | H21: -2087.488636 | I21: -101.6420974 | J21: 0 | K21: 0 | L21: 0.007805326004 | M21: 0.2929468102 | N21: 0.1336268102 | O21: -0.006663038533 | P21: 0.007251295654 | Q21: 0.04897577336 | R21: 0.07578502787
A22: 最大塑性率μmax | B22: =B19/B7 -> 5.417715464 | C22: 0.21 | D22: -16.748 | E22: -0.0008711504596 | F22: -91.88171829 | G22: 2036.652355 | H22: -2084.924706 | I22: -91.88171829 | J22: 0 | K22: 0 | L22: 0.01070272744 | M22: 0.2865334761 | N22: 0.1190534761 | O22: -0.008954372807 | P22: 0.01123333812 | Q22: 0.04002140056 | R22: 0.08701836599
C23: 0.22 | D23: -17.103 | E23: -0.0007501721465 | F23: -79.12193016 | G23: 2040.004191 | H23: -2081.57287 | I23: -79.12193016 | J23: 0 | K23: 0 | L23: 0.0134929352 | M23: 0.2715080762 | N23: 0.1004780762 | O23: -0.01034386647 | P23: 0.01517070114 | Q23: 0.02967753409 | R23: 0.1021890671
C24: 0.23 | D24: -17.161 | E24: -0.0006022112256 | F24: -63.51624058 | G24: 2044.10361 | H24: -2077.473451 | I24: -63.51624058 | J24: 0 | K24: 0 | L24: 0.01609924898 | M24: 0.2497546807 | N24: 0.07814468067 | O24: -0.01055243755 | P24: 0.01876080865 | Q24: 0.01912509654 | R24: 0.1209498758
A25: 粘性減衰係数 c | B25: =2*B5*SQRT(B4*B12) -> 353.3815085 | C25: 0.24 | D25: -17.055 | E25: -0.0004294014793 | F25: -45.2897032 | G25: 2048.891493 | H25: -2072.685568 | I25: -45.2897032 | J25: 0 | K25: 0 | L25: 0.01846270026 | M25: 0.2229355761 | N25: 0.05238557612 | O25: -0.009401363767 | P25: 0.0218729409 | Q25: 0.009723732776 | R25: 0.1428228167
A26: （K+2C/dt+4M/dt/dt） | B26: =B12+2*B25/B2+4*B4/B2/B2 -> 29776148 | C26: 0.25 | D26: -16.715 | E26: -0.0002344321138 | F26: -24.72595313 | G26: 2054.293332 | H26: -2067.283728 | I26: -24.72595313 | J26: 0 | K26: 0 | L26: 0.02053117285 | M26: 0.1907589409 | N26: 0.02360894094 | O26: -0.006825454047 | P26: 0.02434821657 | Q26: 0.002898278729 | R26: 0.1671710332
A27: （M+dt*C/2） | B27: =B4+B2*B25/2 -> 741.7669075 | C27: 0.26 | D27: -15.95 | E27: -2.05562266e-05 | F27: -2.168100126 | G27: 2060.218998 | H27: -2061.358063 | I27: -2.168100126 | J27: -1.021405183e-14 | K27: -1.021405183e-14 | L27: 0.02224400458 | M27: 0.1518074057 | N27: -0.007692594282 | O27: -0.00287599475 | P27: 0.02582490581 | Q27: 2.228397875e-05 | R27: 0.1929959391
A28: 継続時間 | B28: =B2*B3 -> 30 | C28: 0.27 | D28: -14.686 | E28: 0.0002083272394 | F28: 21.9726277 | G28: 2066.560464 | H28: -2055.016597 | I28: 21.9726277 | J28: 0 | K28: 1.021405183e-14 | L28: 0.02353268861 | M28: 0.1059293991 | N28: -0.04093060094 | O28: 0.002266464456 | P28: 0.02591453871 | Q28: 0.002288748435 | R28: 0.2189104778
C29: 0.28 | D29: -13.034 | E29: 0.000447675142 | F29: 47.21705743 | G29: 2073.19186 | H29: -2048.385201 | I29: 47.21705743 | J29: 0 | K29: 0 | L29: 0.02433689192 | M29: 0.0549112635 | N29: -0.0754287365 | O29: 0.008280203009 | P29: 0.02452390022 | Q29: 0.01056895144 | R29: 0.243434378
C30: 0.29 | D30: -11.119 | E30: 0.0006924354143 | F30: 73.03233898 | G30: 2079.973211 | H30: -2041.60385 | I30: 73.03233898 | J30: 0 | K30: 0 | L30: 0.02461516255 | M30: 0.0007428618172 | N30: -0.1104471382 | O30: 0.01471613751 | P30: 0.02186341254 | Q30: 0.02528508895 | R30: 0.2652977905
C31: 0.3 | D31: -8.918 | E31: 0.0009372050613 | F31: 98.8486093 | G31: 2086.754821 | H31: -2034.82224 | I31: 98.8486093 | J31: 0 | K31: 0 | L31: 0.02433876686 | M31: -0.05602199926 | N31: -0.1452019993 | O31: 0.02103561952 | P31: 0.01815771726 | Q31: 0.04632070847 | R31: 0.2834555078
C32: 0.31 | D32: -6.349 | E32: 0.001176307633 | F32: 124.0671636 | G32: 2093.379419 | H32: -2028.197642 | I32: 124.0671636 | J32: 0 | K32: 0 | L32: 0.02348174755 | M32: -0.1153818635 | N32: -0.1788718635 | O32: 0.02664986732 | P32: 0.01354713331 | Q32: 0.07297057579 | R32: 0.2970026411
C33: 0.32 | D33: -3.434 | E33: 0.001403833946 | F33: 148.0647501 | G33: 2099.683285 | H33: -2021.893776 | I33: 148.0647501 | J33: 0 | K33: 0 | L33: 0.0220235149 | M33: -0.1762646663 | N33: -0.2106046663 | O33: 0.03095858538 | P33: 0.008314431517 | Q33: 0.1039291612 | R33: 0.3053170726
C34: 0.33 | D34: -0.369 | E34: 0.001613766174 | F34: 170.2066588 | G34: 2105.499686 | H34: -2016.077374 | I34: 170.2066588 | J34: 0 | K34: 0 | L34: 0.01996293083 | M34: -0.2358521478 | N34: -0.2395421478 | O34: 0.03340771308 | P34: 0.00307081765 | Q34: 0.1373368743 | R34: 0.3083878903
C35: 0.34 | D35: 2.64 | E35: 0.001800217719 | F35: 189.8720198 | G35: 2110.66553 | H35: -2010.911531 | I35: 189.8720198 | J35: 0 | K35: 0 | L35: 0.01732737823 | M35: -0.2912583715 | N35: -0.2648583715 | O35: 0.03356861303 | P35: -0.001419984411 | Q35: 0.1709054873 | R35: 0.3069679059
C36: 0.35 | D36: 5.6 | E36: 0.001957665349 | F36: 206.4782887 | G36: 2115.027789 | H36: -2006.549272 | I36: 206.4782887 | J36: 0 | K36: 0 | L36: 0.01416214766 | M36: -0.341787743 | N36: -0.285787743 | O36: 0.03120220825 | P36: -0.0046269353 | Q36: =Q35+O36 -> 0.2021076955 | R36: 0.3023409706
C37: 0.36 | D37: 8.619 | E37: 0.002081046605 | F37: 219.4915192 | G37: 2118.446202 | H37: -2003.130859 | I37: 219.4915192 | J37: 0 | K37: 0 | L37: 0.01051410348 | M37: -0.3878210932 | N37: -0.3016310932 | O37: 0.02627834489 | P37: -0.006287376136 | Q37: 0.2283860404 | R37: 0.2960535944
C38: 0.37 | D38: 11.654 | E38: 0.00216578461 | F38: 228.4289806 | G38: 2120.793961 | H38: -2000.7831 | I38: 228.4289806 | J38: 0 | K38: 0 | L38: 0.006433497608 | M38: -0.4283000806 | N38: -0.3117600806 | O38: 0.01897794487 | P38: -0.006127090443 | Q38: 0.2473639853 | R38: 0.289926504
C39: 0.38 | D39: 14.48 | E39: 0.002207901063 | F39: 232.8710744 | G39: 2121.960843 | H39: -1999.616218 | I39: 232.8710744 | J39: 0 | K39: 0 | L39: 0.001989792946 | M39: -0.4604408519 | N39: -0.3156408519 | O39: 0.009714160988 | P39: -0.00384016277 | Q39: 0.2570781463 | R39: 0.2860863412
C40: 0.39 | D40: 16.862 | E40: 0.002204250683 | F40: 232.4860626 | G40: 2121.859705 | H40: -1999.717356 | I40: 232.4860626 | J40: 0 | K40: 0 | L40: -0.002719868823 | M40: -0.4814915018 | N40: -0.3128715018 | O40: -0.00084936505 | P40: 0.0006308583708 | Q40: 0.2562287812 | R40: 0.2867171996
C41: 0.4 | D41: 18.738 | E41: 0.002152749956 | F41: 227.0541934 | G41: 2120.432821 | H41: -2001.14424 | I41: 227.0541934 | J41: 0 | K41: 0 | L41: -0.007580276762 | M41: -0.4905900862 | N41: -0.3032100862 | O41: -0.01183332885 | P41: 0.0069523612 | Q41: 0.2443954524 | R41: 0.2936695608
C42: 0.41 | D42: 20.219 | E42: 0.002052463239 | F42: 216.4767831 | G42: 2117.654268 | H42: -2003.922793 | I42: 216.4767831 | J42: 0 | K42: 0 | L42: -0.01247706651 | M42: -0.4887678629 | N42: -0.2865778629 | O42: -0.02224013262 | P42: 0.01458958225 | Q42: 0.2221553198 | R42: 0.308259143
C43: 0.42 | D43: 21.37 | E43: 0.001903554661 | F43: 200.7711426 | G43: 2113.528593 | H43: -2008.048468 | I43: 200.7711426 | J43: 0 | K43: 0 | L43: -0.01730464906 | M43: -0.4767486481 | N43: -0.2630486481 | O43: -0.03106589762 | P43: 0.02301674385 | Q43: 0.1910894222 | R43: 0.3312758869
C44: 0.43 | D44: 22.164 | E44: 0.001707227386 | F44: 180.0641715 | G44: 2108.089132 | H44: -2013.487929 | I44: 180.0641715 | J44: 0 | K44: 0 | L44: -0.02196080601 | M44: -0.4544827415 | N44: -0.2328427415 | O44: -0.03738417978 | P44: 0.03169196723 | Q44: 0.1537052424 | R44: 0.3629678541
C45: 0.44 | D45: 22.629 | E45: 0.001465691942 | F45: 154.589018 | G45: 2101.397128 | H45: -2020.179933 | I45: 154.589018 | J45: 0 | K45: 0 | L45: -0.02634628275 | M45: -0.4226126066 | N45: -0.1963226066 | O45: -0.04041530333 | P45: 0.04006838546 | Q45: 0.113289939 | R45: 0.4030362396
C46: 0.45 | D46: 23.057 | E46: 0.001182050346 | F46: 124.6728573 | G46: 2093.538528 | H46: -2028.038533 | I46: 124.6728573 | J46: 0 | K46: 0 | L46: -0.03038203638 | M46: -0.3845381182 | N46: -0.1539681182 | O46: -0.03960514196 | P46: 0.04797821987 | Q46: 0.07368479708 | R46: 0.4510144594
C47: 0.46 | D47: 23.886 | E47: 0.0008599869727 | F47: 90.70428637 | G47: 2084.61541 | H47: -2036.961651 | I47: 90.70428637 | J47: 0 | K47: 0 | L47: -0.03403063837 | M47: -0.3451822811 | N47: -0.1063222811 | O47: -0.03468254476 | P47: 0.05599485431 | Q47: 0.03900225232 | R47: 0.5070093137
C48: 0.47 | D48: 25.405 | E48: 0.0005033514895 | F48: 53.08933635 | G48: 2074.734434 | H48: -2046.842627 | I48: 53.08933635 | J48: 0 | K48: 0 | L48: -0.03729645828 | M48: -0.3079816995 | N48: -0.05393169954 | O48: -0.02564095406 | P48: 0.06513377697 | Q48: 0.01336129826 | R48: 0.5721430907
C49: 0.48 | D49: 27.69 | E49: 0.0001158321461 | F49: 12.21701314 | G49: 2063.997787 | H49: -2057.579274 | I49: 12.21701314 | J49: -3.552713679e-14 | K49: -3.552713679e-14 | L49: -0.04020741041 | M49: -0.2742087268 | N49: 0.002691273243 | O49: -0.01265373684 | P49: 0.07625180952 | Q49: 0.0007075614256 | R49: 0.6483949002
C50: 0.49 | D50: 30.72 | E50: -0.0002992000974 | F50: -31.55714235 | G50: 2052.498865 | H50: -2069.078196 | I50: -31.55714235 | J50: -3.552713679e-14 | K50: 0 | L50: -0.04279903829 | M50: -0.2441168499 | N50: 0.06308315009 | O50: 0.004013388607 | P50: 0.08984079707 | Q50: 0.004720950032 | R50: 0.7382356973
C51: 0.5 | D51: 34.594 | E51: -0.000738770879 | F51: -77.91941912 | G51: 2040.320076 | H51: -2081.256985 | I51: -77.91941912 | J51: 0 | K51: 3.552713679e-14 | L51: -0.04511511803 | M51: -0.2190990978 | N51: 0.1268409022 | O51: 0.02406134885 | P51: 0.1063934574 | Q51: 0.02878229888 | R51: 0.8446291547
C52: 0.51 | D52: 39.455 | E52: -0.001200422221 | F52: -126.6105702 | G52: 2027.529521 | H52: -2094.04754 | I52: -126.6105702 | J52: 0 | K52: 0 | L52: -0.04721515047 | M52: -0.2009073902 | N52: 0.1936426098 | O52: 0.04721077207 | P52: 0.1266726877 | Q52: =Q51+O52 -> 0.07599307094 | R52: 0.9713018425
C53: 0.52 | D53: 45.259 | E53: -0.001682329653 | F53: -177.4381653 | G53: 2014.177748 | H53: -2107.399313 | I53: -177.4381653 | J53: 0 | K53: 0 | L53: -0.0491663358 | M53: -0.1893296768 | N53: 0.2632603232 | O53: 0.07326167255 | P53: 0.1512594393 | Q53: 0.1492547435 | R53: 1.122561282
C54: 0.53 | D54: 51.687 | E54: -0.00218325944 | F54: -230.2720805 | G54: 2000.298941 | H54: -2121.27812 | I54: -230.2720805 | J54: 0 | K54: 0 | L54: -0.05101962154 | M54: -0.1813274712 | N54: 0.3355425288 | O54: 0.1021171032 | P54: 0.1799040037 | Q54: 0.2513718467 | R54: 1.302465285
C55: 0.54 | D55: 58.345 | E55: -0.002702315854 | F55: -285.017842 | G55: 1985.917916 | H55: -2135.659145 | I55: -285.017842 | J55: 0 | K55: 0 | L55: -0.05279166134 | M55: -0.173080488 | N55: 0.410369512 | O55: 0.1337322698 | P55: 0.2115356844 | Q55: 0.3851041165 | R55: 1.51400097
C56: 0.55 | D56: 64.98 | E56: -0.003238614272 | F56: -341.5821468 | G56: 1971.059182 | H56: -2150.517879 | I56: -341.5821468 | J56: 0 | K56: 0 | L56: -0.0544680223 | M56: -0.1621917044 | N56: 0.4876082956 | O56: 0.1680222914 | P56: 0.2449200781 | Q56: 0.5531264079 | R56: 1.758921048
C57: 0.56 | D57: 71.452 | E57: -0.003791035193 | F57: -399.8469195 | G57: 1955.753756 | H57: -2165.823305 | I57: -399.8469195 | J57: 0 | K57: 0 | L57: -0.05601616194 | M57: -0.1474362226 | N57: 0.5670837774 | O57: 0.2047904639 | P57: 0.279046559 | Q57: 0.7579168718 | R57: 2.037967607
C58: 0.57 | D58: 77.525 | E58: -0.004358050104 | F58: -459.6509449 | G58: 1940.043988 | H58: -2181.533073 | I58: -459.6509449 | J58: 0 | K58: 0 | L58: -0.05738682017 | M58: -0.1266954243 | N58: 0.6485545757 | O58: 0.2436740523 | P58: 0.3127010614 | Q58: 1.001590924 | R58: 2.350668668
C59: 0.58 | D59: 82.819 | E59: -0.004937498543 | F59: -520.7663558 | G59: 1923.989736 | H59: -2197.587325 | I59: -520.7663558 | J59: 0 | K59: 0 | L59: -0.05850286765 | M59: -0.09651407109 | N59: 0.7316759289 | O59: 0.2840506373 | P59: 0.3438803025 | Q59: 1.285641561 | R59: 2.694548971
C60: 0.59 | D60: 87.026 | E60: -0.005526297642 | F60: -582.8679966 | G60: 1907.676413 | H60: -2213.900648 | I60: -582.8679966 | J60: 0 | K60: 0 | L60: -0.05925695214 | M60: -0.0543028274 | N60: 0.8159571726 | O60: 0.3249094561 | P60: 0.370075647 | Q60: 1.610551018 | R60: 3.064624618
C61: 0.6 | D61: 90.121 | E61: -0.006120236443 | F61: -645.5117305 | G61: 1891.220689 | H61: -2230.356372 | I61: -645.5117305 | J61: 0 | K61: 0 | L61: -0.05953080805 | M61: -0.0004683550653 | N61: 0.9007416449 | O61: 0.3647911911 | P61: 0.3893092444 | Q61: 1.975342209 | R61: 3.453933862
C62: 0.61 | D62: 92.277 | E62: -0.006713994941 | F62: -708.1364476 | G62: 1874.769961 | H62: -2246.8071 | I62: -708.1364476 | J62: 0 | K62: 0 | L62: -0.05922089162 | M62: 0.06245164271 | N62: 0.9852216427 | O62: 0.4018700548 | P62: 0.4006989802 | Q62: 2.377212263 | R62: 3.854632842
C63: 0.62 | D63: 93.611 | E63: -0.00730133358 | F63: -770.0840511 | G63: 1858.497102 | H63: -2263.079959 | I63: -770.0840511 | J63: 0 | K63: 0 | L63: -0.05824683606 | M63: 0.1323594675 | N63: 1.068469467 | O63: 0.4341080075 | P63: 0.4039390191 | Q63: 2.811320271 | R63: 4.258571862
C64: 0.63 | D64: 94.014 | E64: -0.007875260079 | F64: -830.6170536 | G64: 1842.595841 | H64: -2278.98122 | I64: -830.6170536 | J64: 0 | K64: 0 | L64: -0.05653846372 | M64: 0.2093150016 | N64: 1.149455002 | O64: 0.4593423904 | P64: 0.3984142129 | Q64: 3.270662661 | R64: 4.656986074
C65: 0.64 | D65: 93.271 | E65: -0.008428053548 | F65: -888.9211195 | G65: 1827.280093 | H65: -2294.296967 | I65: -888.9211195 | J65: 0 | K65: 0 | L65: -0.05402023013 | M65: 0.2943317161 | N65: 1.227041716 | O65: 0.4752747361 | P65: 0.3830953365 | Q65: 3.745937397 | R65: 5.040081411
C66: 0.65 | D66: 91.298 | E66: -0.008951222511 | F66: -944.1006384 | G66: 1812.785125 | H66: -2308.791936 | I66: -944.1006384 | J66: 0 | K66: 0 | L66: -0.05061356253 | M66: 0.3870018048 | N66: 1.299981805 | O66: 0.4794900464 | P66: 0.3573992029 | Q66: 4.225427444 | R66: 5.397480614
C67: =IF(ROW(C66)<=$B$3,ROW(C66)*$B$2," ") -> 0.66 | D67: 88.139 | E67: =(-$B$4*D67/100+J66+$B$4*(4*E66/$B$2/$B$2+4*L66/$B$2+M66)+$B$25*(2*E66/$B$2+L66))/$B$26 -> -0.009435544628 | F67: -995.1829145 | G67: 1799.366452 | H67: -2322.210609 | I67: -995.1829145 | J67: 0 | K67: 0 | L67: =-L66+2/$B$2*(E67-E66)+K67*$B$2/2/$B$27 -> -0.04625086084 | M67: =-M66-4*L66/$B$2+4/$B$2/$B$2*(E67-E66)+K67/$B$27 -> 0.4855385318 | N67: =D67/100+M67 -> 1.366928532 | O67: 0.4696189578 | P67: 0.3218046013 | Q67: 4.695046402 | R67: 5.719285215
C68: 0.67 | D68: 83.738 | E68: -0.009871187908 | F68: =$B$12*(E68-E67)+I67 -> -1041.130951 | G68: =$B$13*(E68-$B$7)+$B$6 -> 1787.296478 | H68: =$B$13*(E68+$B$7)-$B$6 -> -2334.280583 | I68: -1041.130951 | J68: =$B$12*E68-I68 -> 0 | K68: =J68-J67 -> 0 | L68: -0.04087779516 | M68: 0.5890746054 | N68: 1.426454605 | O68: =(I67+I68)*(E68-E67)/2 -> 0.4435532258 | P68: =-(D67/100*L67+D68/100*L68)*$B$2/2*$B$4 -> 0.2774825891 | Q68: =Q67+O68 -> 5.138599627 | R68: 5.996767804
C69: 0.68 | D69: 77.911 | E69: -0.01024779028 | F69: -1080.851843 | G69: 1776.862298 | H69: -2344.714763 | I69: =IF(F69>G69,G69,IF(F69<H69,H69,F69)) -> -1080.851843 | J69: 0 | K69: 0 | L69: -0.03444267991 | M69: 0.697948445 | N69: 1.477058445 | O69: 0.3995718803 | P69: 0.2259400725 | Q69: 5.538171508 | R69: 6.222707877
C70: 0.69 | D70: 70.526 | E70: -0.01055447076 | F70: -1113.197954 | G70: 1768.36538 | H70: -2353.211681 | I70: -1113.197954 | J70: 0 | K70: 0 | L70: -0.02689341613 | M70: 0.8119043109 | N70: 1.517164311 | O70: 0.3364361227 | P70: 0.1694655019 | Q70: 5.87460763 | R70: 6.392173378
C71: 0.7 | D71: 61.9 | E71: -0.01077995351 | F71: -1136.980002 | G71: 1762.118134 | H71: -2359.458927 | I71: -1136.980002 | J71: 0 | K71: 0 | L71: -0.0182031334 | M71: 0.926152234 | N71: 1.545152234 | O71: 0.2536881542 | P71: 0.1118679839 | Q71: 6.128295785 | R71: 6.504041362
C72: 0.71 | D72: 52.565 | E72: -0.01091298645 | F72: -1151.011212 | G72: 1758.432311 | H72: -2363.14475 | I72: -1151.011212 | J72: 0 | K72: 0 | L72: -0.008403454409 | M72: 1.033783565 | N72: 1.559433565 | O72: 0.1521890979 | P72: 0.05803455693 | Q72: 6.280484882 | R72: 6.562075919
C73: 0.72 | D73: 42.974 | E73: -0.01094295637 | F73: -1154.17219 | G73: 1757.601962 | H73: -2363.975099 | I73: -1154.17219 | J73: 0 | K73: 0 | L73: 0.002409471034 | M73: 1.128801524 | N73: 1.558541524 | O73: 0.03454307748 | P73: 0.01251276999 | Q73: 6.31502796 | R73: 6.574588689
C74: 0.73 | D74: 33.42 | E74: -0.01086046644 | F74: -1145.471838 | G74: 1759.887435 | H74: -2361.689626 | I74: -1145.471838 | J74: 0 | K74: 0 | L74: 0.01408851391 | M74: 1.207007051 | N74: 1.541207051 | O74: -0.0948487314 | P74: -0.0212521615 | Q74: 6.220179229 | R74: 6.553336528
C75: 0.74 | D75: 24.015 | E75: -0.01065774966 | F75: -1124.090955 | G75: 1765.503925 | H75: -2356.073136 | I75: -1124.090955 | J75: 0 | K75: 0 | L75: 0.02645484175 | M75: 1.266258518 | N75: 1.506408518 | O75: -0.2300392288 | P75: -0.04092759291 | Q75: 5.99014 | R75: 6.512408935
C76: 0.75 | D76: 14.986 | E76: -0.01032895604 | F76: -1089.412533 | G76: 1774.613512 | H76: -2346.963549 | I76: -1089.412533 | J76: 0 | K76: 0 | L76: 0.03930388345 | M76: 1.303549821 | N76: 1.453409821 | O76: -0.363892919 | P76: -0.04529987782 | Q76: 5.626247081 | R76: 6.467109057
C77: 0.76 | D77: 6.614 | E77: -0.009870436871 | F77: -1041.051738 | G77: 1787.317287 | H77: -2334.259774 | I77: -1041.051738 | J77: 0 | K77: 0 | L77: 0.05239994988 | M77: 1.315663466 | N77: 1.381803466 | O77: -0.4884293511 | P77: -0.03461650684 | Q77: 5.13781773 | R77: 6.43249255
C78: 0.77 | D78: -0.966 | E78: -0.009281015653 | F78: -978.8844811 | G78: 1803.647846 | H78: -2317.929215 | I78: -978.8844811 | J78: 0 | K78: 0 | L78: 0.06548429385 | M78: 1.301205328 | N78: 1.291545328 | O78: -0.5952966339 | P78: -0.0104826713 | Q78: 4.542521096 | R78: 6.422009879
C79: 0.78 | D79: -7.973 | E79: -0.008562075495 | F79: -903.0566418 | G79: 1823.566869 | H79: -2298.010192 | I79: -903.0566418 | J79: 0 | K79: 0 | L79: 0.07830373771 | M79: 1.262683444 | N79: 1.182953444 | O79: -0.6765015239 | P79: 0.02544022056 | Q79: 3.866019572 | R79: 6.447450099
C80: 0.79 | D80: -14.502 | E80: -0.007717428476 | F80: -813.9702864 | G80: 1846.968738 | H80: -2274.608323 | I80: -813.9702864 | J80: 0 | K80: 0 | L80: 0.09062566609 | M80: 1.201702232 | N80: 1.056682232 | O80: -0.7251408383 | P80: 0.07172705709 | Q80: 3.140878734 | R80: 6.519177157
C81: 0.8 | D81: -20.53 | E81: -0.006753154167 | F81: -712.2666376 | G81: 1873.685012 | H81: -2247.892049 | I81: -712.2666376 | J81: 0 | K81: 0 | L81: 0.1022291957 | M81: 1.119003689 | N81: 0.9137036895 | O81: -0.7358555276 | P81: 0.1262816955 | Q81: 2.405023206 | R81: 6.645458852
C82: 0.81 | D82: -25.927 | E82: -0.00567752286 | F82: -598.8179771 | G82: 1903.486553 | H82: -2218.090508 | I82: -598.8179771 | J82: 0 | K82: 0 | L82: 0.1128970658 | M82: 1.014570327 | N82: 0.7553003266 | O82: -0.7051218291 | P82: 0.1859563617 | Q82: 1.699901377 | R82: 6.831415214
C83: 0.82 | D83: -30.564 | E83: -0.004500970378 | F83: -474.7249889 | G83: 1936.084226 | H83: -2185.492835 | I83: -474.7249889 | J83: 0 | K83: 0 | L83: 0.1224134306 | M83: 0.8887026299 | N83: 0.5830626299 | O83: -0.6315398204 | P83: 0.2467354737 | Q83: 1.068361556 | R83: 7.078150687
C84: 0.83 | D84: -34.697 | E84: -0.003235972742 | F84: -341.3035401 | G84: 1971.132368 | H84: -2150.444693 | I84: -341.3035401 | J84: 0 | K84: 0 | L84: 0.1305860966 | M84: 0.7458305788 | N84: 0.3988605788 | O84: -0.51613708 | P84: 0.3060784258 | Q84: =Q83+O84 -> 0.5522244763 | R84: 7.384229113
C85: 0.84 | D85: -38.69 | E85: -0.00189667407 | F85: -200.0454349 | G85: 2008.239102 | H85: -2113.337959 | I85: -200.0454349 | J85: 0 | K85: 0 | L85: 0.1372736378 | M85: 0.5916776618 | N85: 0.2047776618 | O85: -0.3625139817 | P85: 0.3641563251 | Q85: 0.1897104946 | R85: 7.748385438
C86: 0.85 | D86: -42.667 | E86: -0.0004984028945 | F86: -52.56739963 | G86: 2046.979733 | H86: -2074.597328 | I86: -52.56739963 | J86: 0 | K86: 0 | L86: 0.1423805973 | M86: 0.4297142289 | N86: 0.003044228899 | O86: -0.1766106225 | P86: 0.4212845896 | Q86: 0.01309987207 | R86: 8.169670028
C87: 0.86 | D87: -46.522 | E87: 0.0009426763945 | F87: 99.4256801 | G87: 2086.90641 | H87: -2034.67065 | I87: 99.4256801 | J87: 0 | K87: 0 | L87: 0.1458352605 | M87: 0.2612184264 | N87: -0.2040015736 | O87: 0.03376324875 | P87: 0.4758015346 | Q87: 0.04686312082 | R87: 8.645471562
C88: 0.87 | D88: -50.289 | E88: 0.002409783126 | F88: 254.1639184 | G88: 2127.554206 | H88: -1994.022855 | I88: 254.1639184 | J88: 0 | K88: 0 | L88: 0.1475860857 | M88: 0.08894660547 | N88: -0.4139433945 | O88: 0.25937684 | P88: 0.5256406722 | Q88: 0.3062399608 | R88: 9.171112235
C89: 0.88 | D89: -53.888 | E89: 0.003885731705 | F89: 409.8347213 | G89: 2168.446975 | H89: -1953.130086 | I89: 409.8347213 | J89: 0 | K89: 0 | L89: 0.1476036301 | M89: -0.08543772269 | N89: -0.6243177227 | O89: 0.4900139244 | P89: 0.5689127801 | Q89: 0.7962538852 | R89: 9.740025015
C90: 0.89 | D90: -57.587 | E90: 0.005353212323 | F90: 564.6123941 | G90: 2209.10513 | H90: -1912.471931 | I90: 564.6123941 | J90: 0 | K90: 0 | L90: 0.1458924935 | M90: -0.2567895993 | N90: -0.8326595993 | O90: 0.7149911276 | P90: 0.6051562914 | Q90: 1.511245013 | R90: 10.34518131
C91: 0.9 | D91: -61.094 | E91: 0.00679507756 | F91: 716.688369 | G91: 2249.053583 | H91: -1872.523478 | I91: 716.688369 | J91: 0 | K91: 0 | L91: 0.1424805539 | M91: -0.4255983272 | N91: -1.036538327 | O91: 0.9237315141 | P91: 0.6329300653 | Q91: 2.434976527 | R91: 10.97811137
C92: 0.91 | D92: -64.2 | E92: 0.008194454095 | F92: 864.2829885 | G92: 2287.824839 | H92: -1833.752222 | I92: 864.2829885 | J92: 0 | K92: 0 | L92: 0.1373947531 | M92: -0.5915618292 | N92: -1.233561829 | O92: 1.10618711 | P92: 0.6484416539 | Q92: 3.541163637 | R92: 11.62655303
C93: 0.92 | D93: -67.109 | E93: 0.009534854725 | F93: 1005.657319 | G93: 2324.962104 | H93: -1796.614957 | I93: 1005.657319 | J93: 0 | K93: 0 | L93: 0.1306853729 | M93: -0.7503142071 | N93: -1.421404207 | O93: 1.253234583 | P93: 0.65086359 | Q93: 4.79439822 | R93: 12.27741662
C94: 0.93 | D94: -69.778 | E94: 0.0108004489 | F94: 1139.141686 | G94: 2360.026774 | H94: -1761.550287 | I94: 1139.141686 | J94: 0 | K94: 0 | L94: 0.1224334626 | M94: -0.9000678484 | N94: -1.597847848 | O94: 1.357222567 | P94: 0.6405930933 | Q94: 6.151620787 | R94: 12.91800971
C95: 0.94 | D95: -72.992 | E95: 0.01197650833 | F95: 1263.182671 | G95: 2392.610786 | H95: -1728.966275 | I95: 1263.182671 | J95: 0 | K95: 0 | L95: 0.1127784228 | M95: -1.030940108 | N95: -1.760860108 | O95: 1.412638104 | P95: 0.6206781374 | Q95: 7.56425889 | R95: 13.53868785
C96: 0.95 | D96: -76.845 | E96: 0.01305001326 | F96: 1376.407059 | G96: 2422.353414 | H96: -1699.223647 | I96: 1376.407059 | J96: 0 | K96: 0 | L96: 0.1019225628 | M96: -1.140231902 | N96: -1.908681902 | O96: 1.416806292 | P96: 0.5943739932 | Q96: 8.981065182 | R96: 14.13306184
C97: 0.96 | D97: -80.897 | E97: 0.01400996131 | F97: 1477.65441 | G97: 2448.949824 | H97: -1672.627237 | I97: 1477.65441 | J97: 0 | K97: 0 | L97: 0.09006704761 | M97: -1.230871134 | N97: -2.039841134 | O97: 1.369875374 | P97: 0.5593805517 | Q97: 10.35094056 | R97: 14.69244239
C98: 0.97 | D98: -85.105 | E98: 0.01484730777 | F98: 1565.970763 | G98: 2472.149423 | H98: -1649.427638 | I98: 1565.970763 | J98: 0 | K98: 0 | L98: 0.07740224408 | M98: -1.302089574 | N98: -2.153139574 | O98: 1.27428438 | P98: 0.5133184615 | Q98: 11.62522494 | R98: 15.20576085
C99: 0.98 | D99: -89.237 | E99: 0.01555489605 | F99: 1640.601301 | G99: 2491.75393 | H99: -1629.823131 | I99: 1640.601301 | J99: 0 | K99: 0 | L99: 0.06411541308 | M99: -1.355276625 | N99: -2.247646625 | O99: 1.134466415 | P99: 0.4554250487 | Q99: 12.75969135 | R99: 15.6611859
C100: 0.99 | D100: -92.817 | E100: 0.01612730587 | F100: 1700.974336 | G100: 2507.61317 | H100: -1613.963891 | I100: 1700.974336 | J100: 0 | K100: 0 | L100: 0.05036654927 | M100: -1.394496139 | N100: -2.322666139 | O100: 0.9563753405 | P100: 0.3846645475 | Q100: =Q99+O100 -> 13.71606669 | R100: 16.04585045
C101: 1 | D101: -96.061 | E101: 0.01656068117 | F101: 1746.683165 | G101: 2519.620306 | H101: -1601.956755 | I101: 1746.683165 | J101: 0 | K101: 0 | L101: 0.036308511 | M101: -1.417111515 | N101: -2.377721515 | O101: 0.747064804 | P101: 0.3020200435 | Q101: 14.46313149 | R101: 16.34787049
C102: 1.01 | D102: -98.259 | E102: 0.01685259001 | F102: 1777.471286 | G102: 2527.70796 | H102: -1593.869101 | I102: 1777.471286 | J102: 0 | K102: 0 | L102: 0.0220732577 | M102: -1.429939145 | N102: -2.412529145 | O102: 0.514365925 | P102: 0.2092989398 | Q102: 14.97749742 | R102: 16.55716943
C103: 1.02 | D103: -99.369 | E103: 0.01700174258 | F103: 1793.202661 | G103: 2531.840395 | H103: -1589.736666 | I103: 1793.202661 | J103: 0 | K103: 0 | L103: 0.007757255684 | M103: -1.433261258 | N103: -2.426951258 | O103: 0.2662875924 | P103: 0.1087698978 | Q103: 15.24378501 | R103: 16.66593933
C104: 1.03 | D104: -100.132 | E104: 0.01700799086 | F104: 1793.861677 | G104: 2532.01351 | H104: -1589.563551 | I104: 1793.861677 | J104: 0 | K104: 0 | L104: -0.00650759934 | M104: -1.419709746 | N104: -2.421029746 | O104: 0.01120649427 | P104: 0.004410836709 | Q104: 15.25499151 | R104: 16.67035017
C105: 1.04 | D105: -100.26 | E105: 0.01687261163 | F105: 1779.583 | G105: 2528.262681 | H105: -1593.31438 | I105: 1779.583 | J105: 0 | K105: 0 | L105: -0.02056824646 | M105: -1.392419679 | N105: -2.395019679 | O105: -0.2418850927 | P105: -0.1004102791 | Q105: 15.01310641 | R105: 16.56993989
C106: 1.05 | D106: -100.303 | E106: 0.01659845929 | F106: 1750.667687 | G106: 2520.66699 | H106: -1600.910071 | I106: 1750.667687 | J106: 0 | K106: 0 | L106: -0.03426222223 | M106: -1.346375475 | N106: -2.349405475 | O106: -0.4839132495 | P106: -0.2034547145 | Q106: 14.52919316 | R106: 16.36648517
C107: 1.06 | D107: -99.463 | E107: 0.01618992139 | F107: 1707.578502 | G107: 2509.348001 | H107: -1612.22906 | I107: 1707.578502 | J107: 0 | K107: 0 | L107: -0.0474453563 | M107: -1.290251338 | N107: -2.284881338 | O107: -0.7064123051 | P107: -0.3017594625 | Q107: 13.82278086 | R107: 16.06472571
C108: 1.07 | D108: -97.699 | E108: 0.0156525791 | F108: 1650.904098 | G108: 2494.460346 | H108: -1627.116715 | I108: 1650.904098 | J108: 0 | K108: 0 | L108: -0.06002310247 | M108: -1.225297896 | N108: -2.202287896 | O108: -0.9023273718 | P108: -0.3915804188 | Q108: 12.92045349 | R108: 15.67314529
C109: 1.08 | D109: -94.689 | E109: 0.01499282367 | F109: 1581.318572 | G109: 2476.1811 | H109: -1645.395961 | I109: 1581.318572 | J109: 0 | K109: 0 | L109: -0.07192798352 | M109: -1.155678314 | N109: -2.102568314 | O109: -1.066238228 | P109: -0.468974479 | Q109: 11.85421526 | R109: 15.20417081
C110: 1.09 | D110: -90.307 | E110: 0.01421756053 | F110: 1499.550253 | G110: 2454.701588 | H110: -1666.875473 | I110: 1499.550253 | J110: 0 | K110: 0 | L110: -0.08312464361 | M110: -1.083653704 | N110: -1.986723704 | O110: -1.194242013 | P110: -0.5297484628 | Q110: 10.65997325 | R110: 14.67442235
C111: 1.1 | D111: -85.16 | E111: 0.01333411721 | F111: 1406.371985 | G111: 2430.224824 | H111: -1691.352236 | I111: 1406.371985 | J111: 0 | K111: 0 | L111: -0.09356402152 | M111: -1.004221878 | N111: -1.855821878 | O111: -1.283608803 | P111: -0.5725620227 | Q111: 9.376364443 | R111: 14.10186033
C112: 1.11 | D112: -78.344 | E112: 0.0123501832 | F112: 1302.594794 | G112: 2402.963857 | H112: -1718.613204 | I112: 1302.594794 | J112: 0 | K112: 0 | L112: -0.1032227807 | M112: -0.9275299621 | N112: -1.710969962 | O112: -1.332722274 | P112: -0.5940275114 | Q112: 8.043642169 | R112: 13.50783282
C113: 1.12 | D113: -70.849 | E113: 0.01127364689 | F113: 1189.050681 | G113: 2373.137242 | H113: -1748.439819 | I113: 1189.050681 | J113: 0 | K113: 0 | L113: -0.1120844812 | M113: -0.8448101327 | N113: -1.553300133 | O113: -1.341173412 | P113: -0.5930344808 | Q113: 6.702468756 | R113: 12.91479833
C114: 1.13 | D114: -62.489 | E114: 0.01011270402 | F114: 1066.604066 | G114: 2340.972051 | H114: -1780.60501 | I114: 1066.604066 | J114: 0 | K114: 0 | L114: -0.120104092 | M114: -0.7591120278 | N114: -1.384002028 | O114: -1.309343143 | P114: -0.5715115465 | Q114: 5.393125613 | R114: 12.34328679
C115: 1.14 | D115: -53.214 | E115: 0.008875881276 | F115: 936.1542704 | G115: 2306.704524 | H115: -1814.872537 | I115: 936.1542704 | J115: 0 | K115: 0 | L115: -0.1272604574 | M115: -0.6721610513 | N115: -1.204301051 | O115: -1.238528533 | P115: -0.5282572356 | Q115: 4.15459708 | R115: 11.81502955
C116: 1.15 | D116: -43.694 | E116: 0.007572009306 | F116: 798.6326797 | G116: 2270.579326 | H116: -1850.997735 | I116: 798.6326797 | J116: 0 | K116: 0 | L116: -0.1335139365 | M116: -0.5785347613 | N116: -1.015474761 | O116: -1.130970038 | P116: -0.466414449 | Q116: =Q115+O116 -> 3.023627041 | R116: 11.3486151
C117: 1.16 | D117: -32.885 | E117: 0.006210157332 | F117: 654.9958393 | G117: 2232.847728 | H117: -1888.729333 | I117: 654.9958393 | J117: 0 | K117: 0 | L117: -0.1388564585 | M117: -0.4899696413 | N117: -0.8188196413 | O117: -0.9898134345 | P117: -0.3848019453 | Q117: 2.033813607 | R117: 10.96381316
C118: 1.17 | D118: -20.808 | E118: 0.004799156312 | F118: 506.1751658 | G118: 2193.754402 | H118: -1927.822658 | I118: 506.1751658 | J118: 0 | K118: 0 | L118: -0.1433437454 | M118: -0.4074877524 | N118: -0.6155677524 | O118: -0.819206736 | P118: -0.2793126778 | Q118: 1.214606871 | R118: 10.68450048
C119: 1.18 | D119: -9.079 | E119: 0.003347627552 | F119: 353.0799626 | G119: 2153.538211 | H119: -1968.03885 | I119: 353.0799626 | J119: 0 | K119: 0 | L119: -0.1469620065 | M119: -0.316164469 | N119: -0.406954469 | O119: -0.6236167654 | P119: -0.1597276944 | Q119: 0.5909901055 | R119: 10.52477279
C120: 1.19 | D120: 2.791 | E120: 0.001864548456 | F120: 196.6570919 | G120: 2112.447884 | H120: -2009.129177 | I120: 196.6570919 | J120: -3.126388037e-13 | K120: -3.126388037e-13 | L120: -0.1496538127 | M120: -0.2221967592 | N120: -0.1942867592 | O120: -0.4076517669 | P120: -0.03391361785 | Q120: 0.1833383385 | R120: 10.49085917
C121: 1.2 | D121: 12.831 | E121: 0.0003597720312 | F121: 37.94576706 | G121: 2070.756408 | H121: -2050.820653 | I121: 37.94576706 | J121: -3.055333764e-13 | K121: 7.105427358e-15 | L121: -0.1513014723 | M121: -0.1073351683 | N121: 0.02097483172 | O121: -0.1765124257 | P121: 0.08728422035 | Q121: 0.006825912845 | R121: 10.57814339
C122: 1.21 | D122: 19.694 | E122: -0.001154923971 | F122: -121.8117924 | G122: 2028.790099 | H122: -2092.786962 | I122: -121.8117924 | J122: -2.98427949e-13 | K122: 7.105427358e-15 | L122: -0.1516377282 | M122: 0.04008400211 | N122: 0.2370240021 | O122: 0.06351576668 | P122: 0.1823249966 | Q122: 0.07034167953 | R122: 10.76046839
C123: 1.22 | D123: 25.575 | E123: -0.00266539922 | F123: -281.1241818 | G123: 1986.940731 | H123: -2134.63633 | I123: -281.1241818 | J123: 0 | K123: 2.98427949e-13 | L123: -0.1504573215 | M123: 0.1959973204 | N123: 0.4517473204 | O123: 0.3043124079 | P123: 0.2528690784 | Q123: 0.3746540875 | R123: 11.01333746
C124: 1.23 | D124: 27.904 | E124: -0.004155479918 | F124: -438.2855234 | G124: 1945.656417 | H124: -2175.920644 | I124: -438.2855234 | J124: 0 | K124: 0 | L124: -0.1475588182 | M124: 0.383703353 | N124: 0.662743353 | O124: 0.5359892581 | P124: 0.2947208086 | Q124: 0.9106433456 | R124: 11.30805827
C125: 1.24 | D125: 29.569 | E125: -0.005607183454 | F125: -591.3991605 | G125: 1905.435383 | H125: -2216.141678 | I125: -591.3991605 | J125: 0 | K125: 0 | L125: -0.142781889 | M125: 0.5716824863 | N125: 0.8673724863 | O125: 0.7473984482 | P125: 0.3085577607 | Q125: 1.658041794 | R125: 11.61661603
C126: 1.25 | D126: 31.332 | E126: -0.007001967904 | F126: -738.509445 | G126: 1866.791355 | H126: -2254.785706 | I126: -738.509445 | J126: 0 | K126: 0 | L126: -0.1361750011 | M126: 0.7496950977 | N126: 1.063015098 | O126: 0.9274679215 | P126: 0.3140764539 | Q126: 2.585509715 | R126: 11.93069249
C127: 1.26 | D127: 33.017 | E127: -0.00832205014 | F127: -877.74076 | G127: 1830.217034 | H127: -2291.360027 | I127: -877.74076 | J127: 0 | K127: 0 | L127: -0.1278414461 | M127: 0.9170158961 | N127: 1.247185896 | O127: 1.066791592 | P127: 0.3140403179 | Q127: 3.652301307 | R127: 12.24473281
C128: 1.27 | D128: 37.432 | E128: -0.009551453927 | F128: -1007.408065 | G128: 1796.155058 | H128: -2325.422003 | I128: -1007.408065 | J128: 0 | K128: 0 | L128: -0.1180393114 | M128: 1.043411047 | N128: 1.417731047 | O128: 1.158804553 | P128: 0.3196573756 | Q128: 4.81110586 | R128: 12.56439018
C129: 1.28 | D129: 42.125 | E129: -0.01067697029 | F129: -1126.118187 | G129: 1764.971397 | H129: -2356.605664 | I129: -1126.118187 | J129: 0 | K129: 0 | L129: -0.1070639615 | M129: 1.151658935 | N129: 1.572908935 | O129: 1.200659355 | P129: 0.3303551246 | Q129: 6.011765215 | R129: 12.89474531
C130: 1.29 | D130: 47.486 | E130: -0.01168790756 | F130: -1232.743457 | G130: 1736.962275 | H130: -2384.614786 | I130: -1232.743457 | J130: 0 | K130: 0 | L130: -0.09512349152 | M130: 1.236435054 | N130: 1.711295054 | O130: 1.19233057 | P130: 0.3340028293 | Q130: 7.204095785 | R130: 13.22874813
C131: =IF(ROW(C130)<=$B$3,ROW(C130)*$B$2," ") -> 1.3 | D131: 52.525 | E131: =(-$B$4*D131/100+J130+$B$4*(4*E130/$B$2/$B$2+4*L130/$B$2+M130)+$B$25*(2*E130/$B$2+L130))/$B$26 -> -0.01257556932 | F131: -1326.366651 | G131: 1712.368635 | H131: -2409.208426 | I131: -1326.366651 | J131: 0 | K131: 0 | L131: =-L130+2/$B$2*(E131-E130)+K131*$B$2/2/$B$27 -> -0.08240886072 | M131: =-M130-4*L130/$B$2+4/$B$2/$B$2*(E131-E130)+K131/$B$27 -> 1.306491106 | N131: =D131/100+M131 -> 1.831741106 | O131: 1.135812093 | P131: 0.3272857025 | Q131: 8.339907878 | R131: 13.55603384
C132: 1.31 | D132: 55.723 | E132: -0.01333259553 | F132: =$B$12*(E132-E131)+I131 -> -1406.211491 | G132: =$B$13*(E132-$B$7)+$B$6 -> 1691.394396 | H132: =$B$13*(E132+$B$7)-$B$6 -> -2430.182665 | I132: -1406.211491 | J132: =$B$12*E132-I132 -> 0 | K132: =J132-J131 -> 0 | L132: -0.06899638264 | M132: 1.376004509 | N132: 1.933234509 | O132: =(I131+I132)*(E132-E131)/2 -> 1.034316646 | P132: =-(D131/100*L131+D132/100*L132)*$B$2/2*$B$4 -> 0.302408801 | Q132: =Q131+O132 -> 9.374224524 | R132: 13.85844264
C133: 1.32 | D133: 57.977 | E133: -0.01395228235 | F133: -1471.570912 | G133: 1674.225296 | H133: -2447.351765 | I133: =IF(F133>G133,G133,IF(F133<H133,H133,F133)) -> -1471.570912 | J133: 0 | K133: 0 | L133: -0.05494098011 | M133: 1.435075998 | N133: 2.014845998 | O133: 0.891661904 | P133: 0.2601099494 | Q133: 10.26588643 | R133: 14.11855259
C134: 1.33 | D134: 59.939 | E134: -0.01442890433 | F134: -1521.841042 | G134: 1661.019962 | H134: -2460.557098 | I134: -1521.841042 | J134: 0 | K134: 0 | L134: -0.04038341637 | M134: 1.476436749 | N134: 2.075826749 | O134: 0.7133629697 | P134: 0.2074166275 | Q134: 10.9792494 | R134: 14.32596921
C135: 1.34 | D135: 60.657 | E135: -0.01475810136 | F135: -1556.562012 | G135: 1651.899199 | H135: -2469.677862 | I135: -1556.562012 | J135: 0 | K135: 0 | L135: -0.02545599014 | M135: 1.509048497 | N135: 2.115618497 | O135: 0.5067005751 | P135: 0.1466911468 | Q135: 11.48594997 | R135: 14.47266036
C136: 1.35 | D136: 61.416 | E136: -0.01493694213 | F136: -1575.424651 | G136: 1646.94422 | H136: -2474.632841 | I136: -1575.424651 | J136: 0 | K136: 0 | L136: -0.01031216401 | M136: 1.519716729 | N136: 2.133876729 | O136: 0.2800634544 | P136: 0.08056438678 | Q136: 11.76601343 | R136: 14.55322475
C137: 1.36 | D137: 62.729 | E137: -0.01496448849 | F137: -1578.330012 | G137: 1646.181018 | H137: -2475.396043 | I137: -1578.330012 | J137: 0 | K137: 0 | L137: 0.004802893675 | M137: 1.503294808 | N137: 2.130584808 | O137: 0.04343721753 | P137: 0.01228589246 | Q137: 11.80945064 | R137: 14.56551064
C138: 1.37 | D138: 63.676 | E138: -0.01484214494 | F138: -1565.42623 | G138: 1649.57068 | H138: -2472.006381 | I138: -1565.42623 | J138: 0 | K138: 0 | L138: 0.01966581565 | M138: 1.469289587 | N138: 2.106049587 | O138: -0.1923091442 | P138: -0.05748028421 | Q138: 11.6171415 | R138: 14.50803036
C139: 1.38 | D139: 65.908 | E139: -0.01457370819 | F139: -1537.113751 | G139: 1657.008013 | H139: -2464.569048 | I139: -1537.113751 | J139: 0 | K139: 0 | L139: 0.03402153366 | M139: 1.401854013 | N139: 2.060934013 | O139: -0.4164178693 | P139: -0.1292976736 | Q139: 11.20072363 | R139: 14.37873268
C140: 1.39 | D140: 67.281 | E140: -0.01416536112 | F140: -1494.044692 | G140: 1668.321715 | H140: -2453.255346 | I140: -1494.044692 | J140: 0 | K140: 0 | L140: 0.04764788083 | M140: 1.323415421 | N140: 1.996225421 | O140: -0.6188823381 | P140: -0.2015792675 | Q140: 10.58184129 | R140: 14.17715342
C141: 1.4 | D141: 68.958 | E141: -0.01362520752 | F141: -1437.073774 | G141: 1683.287261 | H141: -2438.2898 | I141: -1437.073774 | J141: 0 | K141: 0 | L141: 0.06038283899 | M141: 1.22357621 | N141: 1.91315621 | O141: -0.7916270944 | P141: -0.2726780446 | Q141: 9.790214199 | R141: 13.90447537
C142: 1.41 | D142: 70.229 | E142: -0.01296301696 | F142: -1367.231412 | G142: 1701.633975 | H142: -2419.943086 | I142: -1367.231412 | J142: 0 | K142: 0 | L142: 0.07205527281 | M142: 1.110910555 | N142: 1.813200555 | O142: -0.9284922094 | P142: -0.3412972339 | Q142: 8.861721989 | R142: 13.56317814
C143: 1.42 | D143: 70.81 | E143: -0.012189944 | F143: -1285.694093 | G143: 1723.052806 | H143: -2398.524255 | I143: -1285.694093 | J143: 0 | K143: 0 | L143: 0.08255931989 | M143: 0.98989886 | N143: 1.69799886 | O143: -1.025452491 | P143: -0.4035366222 | Q143: 7.836269498 | R143: 13.15964151
C144: 1.43 | D144: 73.744 | E144: -0.01131880219 | F144: -1193.813288 | G144: 1747.188742 | H144: -2374.388319 | I144: -1193.813288 | J144: 0 | K144: 0 | L144: 0.09166904084 | M144: 0.8320453299 | N144: 1.56948533 | O144: -1.080001266 | P144: -0.466424486 | Q144: 6.756268232 | R144: 12.69321703
C145: 1.44 | D145: 74.09 | E145: -0.01036408867 | F145: -1093.118032 | G145: 1773.640124 | H145: -2347.936937 | I145: -1093.118032 | J145: 0 | K145: 0 | L145: 0.09927366313 | M145: 0.6888791285 | N145: 1.429779128 | O145: -1.091682125 | P145: -0.5222634156 | Q145: 5.664586107 | R145: 12.17095361
C146: 1.45 | D146: 74.313 | E146: -0.009340683694 | F146: -985.1777708 | G146: 1801.994678 | H146: -2319.582383 | I146: -985.1777708 | J146: 0 | K146: 0 | L146: 0.1054073329 | M146: 0.5378548223 | N146: 1.280984822 | O146: -1.063469137 | P146: -0.5619678707 | Q146: 4.60111697 | R146: 11.60898574
C147: 1.46 | D147: 73.561 | E147: -0.008263423517 | F147: -871.5573106 | G147: 1831.841348 | H147: -2289.735712 | I147: -871.5573106 | J147: 0 | K147: 0 | L147: 0.1100447026 | M147: 0.3896191183 | N147: 1.125229118 | O147: -1.000093382 | P147: -0.5893409393 | Q147: 3.601023588 | R147: 11.0196448
C148: 1.47 | D148: 70.44 | E148: -0.007146733098 | F148: -753.7780758 | G148: 1862.780477 | H148: -2258.796584 | I148: -753.7780758 | J148: 0 | K148: 0 | L148: 0.1132933812 | M148: 0.2601166079 | N148: 0.9645166079 | O148: -0.9074982268 | P148: -0.5947892132 | Q148: =Q147+O148 -> 2.693525362 | R148: 10.42485559
C149: 1.48 | D149: 68.47 | E149: -0.006004393834 | F149: -633.2936138 | G149: 1894.430235 | H149: -2227.146826 | I149: -633.2936138 | J149: 0 | K149: 0 | L149: 0.1151744716 | M149: 0.1161014666 | N149: 0.8008014666 | O149: -0.7922532266 | P149: -0.5870561282 | Q149: 1.901272135 | R149: 9.837799462
C150: 1.49 | D150: 65.893 | E150: -0.004850317604 | F150: -511.5712341 | G150: 1926.405179 | H150: -2195.171882 | I150: -511.5712341 | J150: -6.821210263e-13 | K150: -6.821210263e-13 | L150: 0.1156407743 | M150: -0.02284091509 | N150: 0.6360890849 | O150: -0.6606306536 | P150: -0.5737188037 | Q150: 1.240641481 | R150: 9.264080658
C151: 1.5 | D151: 63.063 | E151: -0.00369843801 | F151: -390.0805373 | G151: 1958.319262 | H151: -2163.257799 | I151: -390.0805373 | J151: -7.389644452e-13 | K151: -5.684341886e-14 | L151: 0.1147351445 | M151: -0.1582850556 | N151: 0.4723449444 | O151: -0.5192971383 | P151: -0.5496520186 | Q151: 0.7213443431 | R151: 8.71442864
C152: 1.51 | D152: 62.41 | E152: -0.00256285581 | F152: -270.3087543 | G152: 1989.781809 | H152: -2131.795252 | I152: -270.3087543 | J152: -6.821210263e-13 | K152: 5.684341886e-14 | L152: 0.1123812955 | M152: -0.3124847532 | N152: 0.3116152468 | O152: -0.3749631622 | P152: -0.5272225855 | Q152: 0.3463811808 | R152: 8.187206054
C153: 1.52 | D153: 62.259 | E153: -0.001458517856 | F153: -153.832355 | G153: 2020.378699 | H153: -2101.198362 | I153: -153.832355 | J153: -7.105427358e-13 | K153: -2.842170943e-14 | L153: 0.1084862954 | M153: -0.4665152644 | N153: 0.1560747356 | O153: -0.2341975625 | P153: -0.5094147017 | Q153: 0.1121836184 | R153: 7.677791352
C154: 1.53 | D154: 63.1 | E154: -0.0004008944345 | F154: -42.28301677 | G154: 2049.681312 | H154: -2071.895749 | I154: -42.28301677 | J154: -6.96331881e-13 | K154: 1.421085472e-14 | L154: 0.103038389 | M154: -0.6230660062 | N154: 0.007933993821 | O154: -0.1037081053 | P154: -0.4904709125 | Q154: 0.008475513049 | R154: 7.18732044
C155: 1.54 | D155: 64.682 | E155: 0.0005944775115 | F155: 62.70055263 | G155: 2077.25918 | H155: -2044.317881 | I155: 62.70055263 | J155: -7.105427358e-13 | K155: -1.421085472e-14 | L155: 0.0960360002 | M155: -0.7774117557 | N155: -0.1305917557 | O155: 0.0101615212 | P155: -0.4704003477 | Q155: 0.01863703425 | R155: 6.716920092
C156: 1.55 | D156: 60.5 | E156: 0.001513834446 | F156: 159.6666897 | G156: 2102.730969 | H156: -2018.846092 | I156: 159.6666897 | J156: -6.821210263e-13 | K156: 2.842170943e-14 | L156: 0.08783538675 | M156: -0.862710934 | N156: -0.257710934 | O156: 0.1022174332 | P156: -0.4264561341 | Q156: 0.1208544674 | R156: 6.290463958
C157: 1.56 | D157: 53.132 | E157: 0.002348027784 | F157: 247.6504776 | G157: 2125.843207 | H157: -1995.733854 | I157: 247.6504776 | J157: -7.105427358e-13 | K157: -2.842170943e-14 | L157: 0.07900328089 | M157: -0.9037102381 | N157: -0.3723902381 | O157: 0.1698906338 | P157: -0.3519307991 | Q157: 0.2907451012 | R157: 5.938533159
C158: 1.57 | D158: 42.736 | E158: 0.003092927595 | F158: 326.2163255 | G158: 2146.481471 | H158: -1975.09559 | I158: 326.2163255 | J158: -6.821210263e-13 | K158: 2.842170943e-14 | L158: 0.06997668111 | M158: -0.9016097171 | N158: -0.4742497171 | O158: 0.2137366363 | P158: -0.2659606533 | Q158: 0.5044817375 | R158: 5.672572506
C159: 1.58 | D159: 27.194 | E159: 0.003749264437 | F159: 395.4412868 | G159: 2164.666 | H159: -1956.911061 | I159: 395.4412868 | J159: -6.821210263e-13 | K159: 0 | L159: 0.06129068738 | M159: -0.8355890303 | N159: -0.5636490303 | O159: 0.2368252393 | P159: -0.1723187087 | Q159: 0.7413069768 | R159: 5.500253797
C160: 1.59 | D160: 7.746 | E160: 0.004323301243 | F160: 455.9859235 | G160: 2180.570318 | H160: -1941.006743 | I160: 455.9859235 | J160: -6.821210263e-13 | K160: 0 | L160: 0.0535166738 | M160: -0.7192136844 | N160: -0.6417536844 | O160: 0.2443752782 | P160: -0.07700732699 | Q160: 0.985682255 | R160: 5.42324647
C161: 1.6 | D161: -11.7 | E161: 0.004825657128 | F161: 508.9702519 | G161: 2194.488637 | H161: -1927.088424 | I161: 508.9702519 | J161: -7.389644452e-13 | K161: -5.684341886e-14 | L161: 0.04695450332 | M161: -0.5932204123 | N161: -0.7102204123 | O161: 0.242375707 | P161: 0.004988618742 | Q161: 1.228057962 | R161: 5.428235089
C162: 1.61 | D162: -31.271 | E162: 0.005268917213 | F162: 555.7216457 | G162: 2206.769642 | H162: -1914.807419 | I162: 555.7216457 | J162: 0 | K162: 7.389644452e-13 | L162: 0.04169751358 | M162: -0.458177535 | N162: -0.770887535 | O162: 0.2359677102 | P162: 0.06857175354 | Q162: 1.464025672 | R162: 5.496806842
C163: 1.62 | D163: -44.881 | E163: 0.005665024377 | F163: 597.4997409 | G163: 2217.744224 | H163: -1903.832837 | I163: 597.4997409 | J163: 0 | K163: 0 | L163: 0.03752391915 | M163: -0.3765413514 | N163: -0.8253513514 | O163: 0.2283996263 | P163: 0.1105572566 | Q163: 1.692425299 | R163: 5.607364099
C164: 1.63 | D164: -50.018 | E164: 0.006021495374 | F164: 635.0973423 | G164: 2227.620642 | H164: -1893.956418 | I164: 635.0973423 | J164: 0 | K164: 0 | L164: 0.0337702804 | M164: -0.3741863986 | N164: -0.8743663986 | O164: 0.219692556 | P164: 0.1248096173 | Q164: =Q163+O164 -> 1.912117855 | R164: 5.732173716
C165: 1.64 | D165: -52.21 | E165: 0.006339948101 | F165: 668.6850921 | G165: 2236.443723 | H165: -1885.133338 | I165: 668.6850921 | J165: 0 | K165: 0 | L165: 0.02992026489 | M165: -0.3958167034 | N165: -0.9179167034 | O165: 0.2075965355 | P165: 0.1202965799 | Q165: 2.11971439 | R165: 5.852470296
C166: 1.65 | D166: -46.662 | E166: 0.006617038375 | F166: 697.9102739 | G166: 2244.120812 | H166: -1877.456249 | I166: 697.9102739 | J166: 0 | K166: 0 | L166: 0.02549779001 | M166: -0.4886782722 | N166: -0.9552982722 | O166: 0.1893351426 | P166: 0.1018208516 | Q166: 2.309049533 | R166: 5.954291148
C167: 1.66 | D167: -42.811 | E167: 0.006845866681 | F167: 722.0451839 | G167: 2250.460751 | H167: -1871.11631 | I167: 722.0451839 | J167: 0 | K167: 0 | L167: 0.02026787112 | M167: -0.5573055065 | N167: -0.9854155065 | O167: 0.1624630008 | P167: 0.0761262312 | Q167: 2.471512533 | R167: 6.030417379
C168: 1.67 | D168: -38.794 | E168: 0.007019128732 | F168: 740.3194267 | G168: 2255.261165 | H168: -1866.315896 | I168: 740.3194267 | J168: 0 | K168: 0 | L168: 0.01438453915 | M168: -0.6193608876 | N168: -1.007300888 | O168: 0.1266861461 | P168: 0.05275170077 | Q168: 2.59819868 | R168: 6.08316908
C169: 1.68 | D169: -34.625 | E169: 0.007130643672 | F169: 752.0810967 | G169: 2258.350809 | H169: -1863.226252 | I169: 752.0810967 | J169: 0 | K169: 0 | L169: 0.007918448698 | M169: -0.6738572028 | N169: -1.020107203 | O169: 0.08321247685 | P169: 0.03079177363 | Q169: 2.681411156 | R169: 6.113960853
C170: 1.69 | D170: -42.693 | E170: 0.007178059201 | F170: 757.0820931 | G170: 2259.664508 | H170: -1861.912553 | I170: 757.0820931 | J170: 0 | K170: 0 | L170: 0.001564657185 | M170: -0.5969011 | N170: -1.0238311 | O170: 0.03577888581 | P170: 0.01261611923 | Q170: 2.717190042 | R170: 6.126576972
C171: 1.7 | D171: -50.245 | E171: 0.007165858682 | F171: 755.7952836 | G171: 2259.326479 | H171: -1862.250582 | I171: 755.7952836 | J171: 0 | K171: 0 | L171: -0.004004760986 | M171: -0.516982534 | N171: -1.019432534 | O171: -0.009228944594 | P171: -0.004973514342 | Q171: 2.707961098 | R171: 6.121603458
C172: 1.71 | D172: -57.394 | E172: 0.007102033394 | F172: 749.0635221 | G172: 2257.55813 | H172: -1864.018931 | I172: 749.0635221 | J172: 0 | K172: 0 | L172: -0.008760296597 | M172: -0.4341245883 | N172: -1.008064588 | O172: -0.04802402327 | P172: -0.02604828411 | Q172: 2.659937074 | R172: 6.095555174
C173: 1.72 | D173: -65.941 | E173: 0.00699528702 | F173: 737.8048008 | G173: 2254.600605 | H173: -1866.976456 | I173: 737.8048008 | J173: 0 | K173: 0 | L173: -0.01258897825 | M173: -0.3316117414 | N173: -0.9910217414 | O173: -0.0793589012 | P173: -0.04931797626 | Q173: 2.580578173 | R173: 6.046237198
C174: 1.73 | D174: -63.465 | E174: 0.00685274532 | F174: 722.7706856 | G174: 2250.651331 | H174: -1870.92573 | I174: 722.7706856 | J174: 0 | K174: 0 | L174: -0.0159193618 | M174: -0.3344649696 | N174: -0.9691149696 | O174: -0.1040964566 | P174: -0.06809672811 | Q174: 2.476481717 | R174: 5.97814047
C175: 1.74 | D175: -57.914 | E175: 0.006676111732 | F175: 704.1408411 | G175: 2245.757504 | H175: -1875.819557 | I175: 704.1408411 | J175: 0 | K175: 0 | L175: -0.01940735584 | M175: -0.3631338384 | N175: -0.9422738384 | O175: -0.1260202515 | P175: -0.07896835641 | Q175: 2.350461465 | R175: 5.899172113
C176: 1.75 | D176: -46.528 | E176: 0.006461846669 | F176: 681.5419411 | G176: 2239.821056 | H176: -1881.756004 | I176: 681.5419411 | J176: 0 | K176: 0 | L176: -0.02344565665 | M176: -0.4445263238 | N176: -0.9098063238 | O176: -0.1484517039 | P176: -0.0819489734 | Q176: 2.202009761 | R176: 5.81722314
C177: 1.76 | D177: -27.692 | E177: 0.00620144461 | F177: 654.0768938 | G177: 2232.606333 | H177: -1888.970728 | I177: 654.0768938 | J177: 0 | K177: 0 | L177: -0.02863475517 | M177: -0.5932933794 | N177: -0.8702133794 | O177: -0.1738989474 | P177: -0.06970182665 | Q177: 2.028110814 | R177: 5.747521313
C178: 1.77 | D178: -4.871 | E178: 0.005880950666 | F178: 620.2738532 | G178: 2223.726698 | H178: -1897.850363 | I178: 620.2738532 | J178: 0 | K178: 0 | L178: -0.03546403368 | M178: -0.7725623237 | N178: -0.8212723237 | O178: -0.2042108486 | P178: -0.03573086108 | Q178: 1.823899965 | R178: 5.711790452
C179: 1.78 | D179: 19.244 | E179: 0.005483173832 | F179: 578.3196551 | G179: 2212.705856 | H179: -1908.871205 | I179: 578.3196551 | J179: 0 | K179: 0 | L179: -0.04409133309 | M179: -0.9528975585 | N179: -0.7604575585 | O179: -0.2383863654 | P179: 0.02500268732 | Q179: 1.5855136 | R179: 5.736793139
C180: 1.79 | D180: 42.737 | E180: 0.004990620755 | F180: 526.3692457 | G180: 2199.059134 | H180: -1922.517927 | I180: 526.3692457 | J180: 0 | K180: 0 | L180: -0.05441928222 | M180: -1.112692267 | N180: -0.6853222671 | O180: -0.2720589584 | P180: 0.1174457877 | Q180: =Q179+O180 -> 1.313454641 | R180: 5.854238927
C181: 1.8 | D181: 62.398 | E181: 0.004388163882 | F181: 462.8270962 | G181: 2182.367408 | H181: -1939.209653 | I181: 462.8270962 | J181: -6.252776075e-13 | K181: -6.252776075e-13 | L181: -0.06607209248 | M181: -1.217869784 | N181: -0.5938897844 | O181: -0.2979740677 | P181: 0.2385938818 | Q181: 1.015480574 | R181: 6.092832809
C182: 1.81 | D182: 73.674 | E182: 0.003666447749 | F182: 386.7064702 | G182: 2162.371473 | H182: -1959.205587 | I182: 386.7064702 | J182: -6.821210263e-13 | K182: -5.684341886e-14 | L182: -0.07827113396 | M182: -1.221938512 | N182: -0.4851985119 | O182: -0.3065610399 | P182: 0.3659046162 | Q182: 0.7089195337 | R182: 6.458737425
C183: 1.82 | D183: 82.322 | E183: 0.002823624192 | F183: 297.8124383 | G183: 2139.020125 | H183: -1982.556935 | I183: 297.8124383 | J183: -6.252776075e-13 | K183: 5.684341886e-14 | L183: -0.09029357759 | M183: -1.182550213 | N183: -0.3593302131 | O183: -0.2884643309 | P183: 0.4883887305 | Q183: 0.4204552027 | R183: 6.947126155
C184: 1.83 | D184: 77.759 | E184: 0.001866243027 | F184: 196.8358212 | G184: 2112.494834 | H184: -2009.082227 | I184: 196.8358212 | J184: -6.252776075e-13 | K184: 0 | L184: -0.1011826553 | M184: -0.9952653268 | N184: -0.2176753268 | O184: -0.2367834633 | P184: 0.5661373695 | Q184: 0.1836717394 | R184: 7.513263525
C185: 1.84 | D185: 68.026 | E185: 0.0008109504957 | F185: 85.53232587 | G185: 2083.2568 | H185: -2038.32026 | I185: 85.53232587 | J185: -6.536993169e-13 | K185: -2.842170943e-14 | L185: -0.1098758511 | M185: -0.7433738269 | N185: -0.06311382685 | O185: -0.1489904984 | P185: 0.5676642392 | Q185: 0.03468124103 | R185: 8.080927764
C186: 1.85 | D186: 53.853 | E186: -0.0003173425651 | F186: -33.47065922 | G186: 2051.996208 | H186: -2069.580853 | I186: -33.47065922 | J186: -6.465938895e-13 | K186: 7.105427358e-15 | L186: -0.1157827611 | M186: -0.4380081811 | N186: 0.1005218189 | O186: -0.0293704086 | P186: 0.507257556 | Q186: 0.005310832426 | R186: 8.58818532
C187: 1.86 | D187: 37.463 | E187: -0.001488766564 | F187: -157.0227376 | G187: 2019.540625 | H187: -2102.036436 | I187: -157.0227376 | J187: -6.536993169e-13 | K187: -7.105427358e-15 | L187: -0.1185020387 | M187: -0.1058473421 | N187: 0.2687826579 | O187: 0.1115742683 | P187: 0.3949635636 | Q187: 0.1168851008 | R187: 8.983148884
C188: 1.87 | D188: 29.092 | E188: -0.002672770116 | F188: -281.9016028 | G188: 1986.736513 | H188: -2134.840548 | I188: -281.9016028 | J188: -6.252776075e-13 | K188: 2.842170943e-14 | L188: -0.1182986716 | M188: 0.1465207646 | N188: 0.4374407646 | O188: 0.2598439889 | P188: 0.2915965127 | Q188: 0.3767290897 | R188: 9.274745397
C189: 1.88 | D189: 26.565 | E189: -0.003843655799 | F189: -405.396904 | G189: 1954.295845 | H189: -2167.281216 | I189: -405.396904 | J189: -6.252776075e-13 | K189: 0 | L189: -0.115878465 | M189: 0.3375205551 | N189: 0.6031705551 | O189: 0.4023739908 | P189: 0.2412346859 | Q189: 0.7791030805 | R189: 9.515980083
C190: 1.89 | D190: 32.857 | E190: -0.004983123356 | F190: -525.5784823 | G190: 1922.72565 | H190: -2198.851411 | I190: -525.5784823 | J190: 0 | K190: 6.252776075e-13 | L190: -0.1120150465 | M190: 0.4351631465 | N190: 0.7637331465 | O190: 0.5304081247 | P190: 0.2500752228 | Q190: 1.309511205 | R190: 9.766055305
C191: 1.9 | D191: 40.858 | E191: -0.006079665051 | F191: -641.2325969 | G191: 1892.344764 | H191: -2229.232297 | I191: -641.2325969 | J191: 0 | K191: 0 | L191: -0.1072932925 | M191: 0.509187652 | N191: 0.917767652 | O191: 0.6397284992 | P191: 0.2983779059 | Q191: 1.949239704 | R191: 10.06443321
C192: 1.91 | D192: 53.473 | E192: -0.007126623804 | F192: -751.6571144 | G192: 1863.337627 | H192: -2258.239434 | I192: -751.6571144 | J192: 0 | K192: 0 | L192: -0.1020984581 | M192: 0.5297792184 | N192: 1.064509218 | O192: 0.7291490378 | P192: 0.3642021073 | Q192: 2.678388742 | R192: 10.42863532
C193: 1.92 | D193: 63.788 | E193: -0.008120223137 | F193: -856.4537233 | G193: 1835.808872 | H193: -2285.768189 | I193: -856.4537233 | J193: 0 | K193: 0 | L193: -0.09662140839 | M193: 0.5656307329 | N193: 1.203510733 | O193: 0.7989089276 | P193: 0.4300434983 | Q193: 3.47729767 | R193: 10.85867882
C194: 1.93 | D194: 60.964 | E194: -0.009054198688 | F194: -954.9617107 | G194: 1809.932058 | H194: -2311.645003 | I194: -954.9617107 | J194: 0 | K194: 0 | L194: -0.09017370182 | M194: 0.7239105804 | N194: 1.33355058 | O194: 0.8459088641 | P194: 0.4314435304 | Q194: 4.323206534 | R194: 11.29012235
C195: =IF(ROW(C194)<=$B$3,ROW(C194)*$B$2," ") -> 1.94 | D195: 59.518 | E195: =(-$B$4*D195/100+J194+$B$4*(4*E194/$B$2/$B$2+4*L194/$B$2+M194)+$B$25*(2*E194/$B$2+L194))/$B$26 -> -0.009916400848 | F195: -1045.899637 | G195: 1786.043804 | H195: -2335.533256 | I195: -1045.899637 | J195: 0 | K195: 0 | L195: =-L194+2/$B$2*(E195-E194)+K195*$B$2/2/$B$27 -> -0.08226673015 | M195: =-M194-4*L194/$B$2+4/$B$2/$B$2*(E195-E194)+K195/$B$27 -> 0.8574837538 | N195: =D195/100+M195 -> 1.452663754 | O195: 0.8625734876 | P195: 0.3845669297 | Q195: 5.185780022 | R195: 11.67468928
C196: 1.95 | D196: 43.081 | E196: -0.01068944864 | F196: =$B$12*(E196-E195)+I195 -> -1127.4343 | G196: =$B$13*(E196-$B$7)+$B$6 -> 1764.62567 | H196: =$B$13*(E196+$B$7)-$B$6 -> -2356.951391 | I196: -1127.4343 | J196: =$B$12*E196-I196 -> 0 | K196: =J196-J195 -> 0 | L196: -0.07234282816 | M196: 1.127296645 | N196: 1.558106645 | O196: =(I195+I196)*(E196-E195)/2 -> 0.8400455 | P196: =-(D195/100*L195+D196/100*L196)*$B$2/2*$B$4 -> 0.2964792471 | Q196: =Q195+O196 -> 6.025825522 | R196: 11.97116852
C197: 1.96 | D197: 24.717 | E197: -0.01134971919 | F197: -1197.074156 | G197: 1746.332153 | H197: -2375.244908 | I197: =IF(F197>G197,G197,IF(F197<H197,H197,F197)) -> -1197.074156 | J197: 0 | K197: 0 | L197: -0.05971128264 | M197: 1.399012459 | N197: 1.646182459 | O197: 0.7674022431 | P197: 0.1699219507 | Q197: 6.793227765 | R197: 12.14109047
C198: 1.97 | D198: 19.198 | E198: -0.01187380855 | F198: -1252.350751 | G198: 1731.811684 | H198: -2389.765377 | I198: -1252.350751 | J198: 0 | K198: 0 | L198: -0.04510658936 | M198: 1.521926197 | N198: 1.713906197 | O198: 0.6418587661 | P198: 0.08664808279 | Q198: 7.435086531 | R198: 12.22773856
C199: 1.98 | D199: 11.312 | E199: -0.01224567072 | F199: -1291.571686 | G199: 1721.508836 | H199: -2400.068225 | I199: -1291.571686 | J199: 0 | K199: 0 | L199: -0.02926584422 | M199: 1.646222829 | N199: 1.759342829 | O199: 0.4729942562 | P199: 0.0442894267 | Q199: 7.908080787 | R199: 12.27202798
C200: 1.99 | D200: 16.46 | E200: -0.0124567477 | F200: -1313.834333 | G200: 1715.660718 | H200: -2405.916343 | I200: -1313.834333 | J200: 0 | K200: 0 | L200: -0.01294955126 | M200: 1.617035763 | N200: 1.781635763 | O200: 0.2749706137 | P200: 0.02013557922 | Q200: 8.183051401 | R200: 12.29216356
... 2801 more rows

Sheet グラフ
A29: 0 | B29: 0
A30: 0 | B30: 1
A31: 0 | B31: 0
A32: 0 | B32: 0
A33: 0 | B33: 0
